[Event "Titled Tuesday Blitz June 1 2021"]
[White "Narayanan, Srinath"]
[Black "Sekar, B"]
[WhiteFideId "5018420"]
[BlackFideId "5043743"]
[WhiteElo "2472"]
[BlackElo "2187"]
[Result "1-0"]
[Round "03"]
[TimeControl "180+1"]
[Date "2021.06.01"]
[WhiteClock "0:00:34"]
[BlackClock "0:00:01"]

1. Nf3 {[%clk 0:02:59]}  Nf6 {[%clk 0:03:00]} 2. b3 {[%clk 0:02:58]}  g6 {[%clk 0:03:00]} 3. Bb2 {[%clk 0:02:58]}  Bg7 {[%clk 0:03:01]} 4. g3 {[%clk 0:02:59]}  O-O {[%clk 0:03:01]} 5. Bg2 {[%clk 0:02:59]}  d5 {[%clk 0:03:01]} 6. O-O {[%clk 0:03:00]}  c5 {[%clk 0:03:02]} 7. e3 {[%clk 0:02:58]}  Nc6 {[%clk 0:03:02]} 8. d4 {[%clk 0:02:59]}  Ne4 {[%clk 0:03:02]} 9. Nbd2 {[%clk 0:02:57]}  Bf5 {[%clk 0:02:57]} 10. Nh4 {[%clk 0:02:34]}  Nxd2 {[%clk 0:02:43]} 11. Nxf5 {[%clk 0:02:32]}  Nxf1 {[%clk 0:02:33]} 12. Nxg7 {[%clk 0:02:31]}  Kxg7 {[%clk 0:01:55]} 13. dxc5+ {[%clk 0:02:27]}  e5 {[%clk 0:01:42]} 14. Kxf1 {[%clk 0:02:10]}  d4 {[%clk 0:01:25]} 15. exd4 {[%clk 0:02:03]}  exd4 {[%clk 0:00:46]} 16. Qg4 {[%clk 0:02:02]}  Qf6 {[%clk 0:00:28]} 17. Qd7 {[%clk 0:01:50]}  Rab8 {[%clk 0:00:21]} 18. Rd1 {[%clk 0:01:38]}  Rfd8 {[%clk 0:00:20]} 19. Qc7 {[%clk 0:01:36]}  Qf5 {[%clk 0:00:16]} 20. Rd2 {[%clk 0:01:31]}  Qg5 {[%clk 0:00:15]} 21. f4 {[%clk 0:01:28]}  Qf5 {[%clk 0:00:15]} 22. Bxc6 {[%clk 0:01:22]}  bxc6 {[%clk 0:00:16]} 23. Bxd4+ {[%clk 0:01:22]}  Kg8 {[%clk 0:00:16]} 24. Be5 {[%clk 0:01:20]}  Rdc8 {[%clk 0:00:08]} 25. Qxa7 {[%clk 0:01:20]}  Ra8 {[%clk 0:00:07]} 26. Qe7 {[%clk 0:01:20]}  Qe4 {[%clk 0:00:07]} 27. Kf2 {[%clk 0:00:54]}  Re8 {[%clk 0:00:06]} 28. Qf6 {[%clk 0:00:55]}  Rxe5 {[%clk 0:00:06]} 29. Qxe5 {[%clk 0:00:56]}  Qb4 {[%clk 0:00:06]} 30. Qd4 {[%clk 0:00:49]}  Qb7 {[%clk 0:00:05]} 31. a4 {[%clk 0:00:48]}  Re8 {[%clk 0:00:05]} 32. Re2 {[%clk 0:00:48]}  Rxe2+ {[%clk 0:00:04]} 33. Kxe2 {[%clk 0:00:49]}  Qe7+ {[%clk 0:00:04]} 34. Kf2 {[%clk 0:00:48]}  Qe6 {[%clk 0:00:05]} 35. a5 {[%clk 0:00:46]}  Qf5 {[%clk 0:00:05]} 36. Qc4 {[%clk 0:00:40]}  Qh3 {[%clk 0:00:03]} 37. Kg1 {[%clk 0:00:39]}  Qg4 {[%clk 0:00:04]} 38. a6 {[%clk 0:00:37]}  Qd1+ {[%clk 0:00:03]} 39. Kf2 {[%clk 0:00:37]}  Qd2+ {[%clk 0:00:04]} 40. Kf3 {[%clk 0:00:35]}  Qd1+ {[%clk 0:00:04]} 41. Ke3 {[%clk 0:00:36]}  Qe1+ {[%clk 0:00:03]} 42. Kd4 {[%clk 0:00:36]}  Qd2+ {[%clk 0:00:02]} 43. Ke5 {[%clk 0:00:36]}  Qd7 {[%clk 0:00:02]} 44. Ke4 {[%clk 0:00:33]}  Qe7+ {[%clk 0:00:01]} 45. Kd3 {[%clk 0:00:33]}  Qd7+ {[%clk 0:00:01]} 46. Kc3 {[%clk 0:00:34]} 1-0


[Site "https://www.chess.com"]

[Event "Titled Tuesday Blitz June 1 2021"]
[White "Narva, Mai"]
[Black "Gokerkan, Cem Kaan"]
[WhiteFideId "4500512"]
[BlackFideId "6336760"]
[WhiteElo "2546"]
[BlackElo "2763"]
[Result "1-0"]
[Round "03"]
[TimeControl "180+1"]
[Date "2021.06.01"]
[WhiteClock "0:00:04"]
[BlackClock "0:00:14"]

1. e4 {[%clk 0:03:00]}  c5 {[%clk 0:02:59]} 2. Nf3 {[%clk 0:03:01]}  d6 {[%clk 0:02:58]} 3. d4 {[%clk 0:03:01]}  cxd4 {[%clk 0:02:59]} 4. Nxd4 {[%clk 0:03:01]}  Nf6 {[%clk 0:02:59]} 5. Nc3 {[%clk 0:03:02]}  g6 {[%clk 0:03:00]} 6. Be3 {[%clk 0:03:02]}  Bg7 {[%clk 0:03:00]} 7. Qd2 {[%clk 0:03:02]}  Ng4 {[%clk 0:02:44]} 8. Bg5 {[%clk 0:02:58]}  Qb6 {[%clk 0:02:23]} 9. Nb3 {[%clk 0:02:38]}  Be6 {[%clk 0:02:09]} 10. h3 {[%clk 0:02:23]}  Ne5 {[%clk 0:02:08]} 11. Nd5 {[%clk 0:02:12]}  Bxd5 {[%clk 0:02:07]} 12. Qxd5 {[%clk 0:02:11]}  Nbc6 {[%clk 0:02:03]} 13. Be2 {[%clk 0:02:04]}  O-O {[%clk 0:02:02]} 14. c3 {[%clk 0:01:59]}  h6 {[%clk 0:01:23]} 15. Be3 {[%clk 0:01:56]}  Qc7 {[%clk 0:01:23]} 16. O-O {[%clk 0:01:41]}  Rad8 {[%clk 0:01:16]} 17. Rad1 {[%clk 0:01:31]}  e6 {[%clk 0:01:14]} 18. Qd2 {[%clk 0:01:31]}  d5 {[%clk 0:01:14]} 19. exd5 {[%clk 0:01:06]}  Rxd5 {[%clk 0:01:15]} 20. Qc1 {[%clk 0:01:07]}  Kh7 {[%clk 0:01:09]} 21. Rxd5 {[%clk 0:01:01]}  exd5 {[%clk 0:01:10]} 22. Rd1 {[%clk 0:01:01]}  Rd8 {[%clk 0:01:10]} 23. Bf4 {[%clk 0:00:58]}  Qe7 {[%clk 0:01:09]} 24. Qe3 {[%clk 0:00:52]}  b6 {[%clk 0:00:54]} 25. Bb5 {[%clk 0:00:45]}  Qe6 {[%clk 0:00:50]} 26. Re1 {[%clk 0:00:35]}  Re8 {[%clk 0:00:50]} 27. Rd1 {[%clk 0:00:14]}  Nc4 {[%clk 0:00:42]} 28. Qxe6 {[%clk 0:00:06]}  Rxe6 {[%clk 0:00:43]} 29. Rxd5 {[%clk 0:00:06]}  Nxb2 {[%clk 0:00:38]} 30. Rd7 {[%clk 0:00:06]}  Ne7 {[%clk 0:00:32]} 31. Rxa7 {[%clk 0:00:06]}  Nd5 {[%clk 0:00:26]} 32. Bc1 {[%clk 0:00:04]}  Nxc3 {[%clk 0:00:22]} 33. Bxb2 {[%clk 0:00:05]}  Ne2+ {[%clk 0:00:15]} 34. Bxe2 {[%clk 0:00:04]}  Bxb2 {[%clk 0:00:16]} 35. Bc4 {[%clk 0:00:04]}  Re1+ {[%clk 0:00:15]} 36. Kh2 {[%clk 0:00:05]}  Be5+ {[%clk 0:00:16]} 37. g3 {[%clk 0:00:05]}  Kg7 {[%clk 0:00:16]} 38. Rxf7+ {[%clk 0:00:05]}  Kh8 {[%clk 0:00:17]} 39. Rb7 {[%clk 0:00:05]}  Bd6 {[%clk 0:00:14]} 40. Rxb6 {[%clk 0:00:05]}  Bc5 {[%clk 0:00:14]} 41. Nxc5 {[%clk 0:00:04]} 1-0


[Site "https://www.chess.com"]

[Event "Titled Tuesday Blitz June 1 2021"]
[White "Nenezic, Marko"]
[Black "Martinez Alcantara, Jose Eduardo"]
[WhiteFideId "912123"]
[BlackFideId "3805662"]
[WhiteElo "2438"]
[BlackElo "2690"]
[Result "0-1"]
[Round "03"]
[TimeControl "180+1"]
[Date "2021.06.01"]
[WhiteClock "0:00:08"]
[BlackClock "0:00:01"]

1. Nf3 {[%clk 0:03:00]}  c5 {[%clk 0:02:56]} 2. c4 {[%clk 0:03:00]}  Nc6 {[%clk 0:02:56]} 3. d4 {[%clk 0:03:00]}  cxd4 {[%clk 0:02:57]} 4. Nxd4 {[%clk 0:03:00]}  Nf6 {[%clk 0:02:57]} 5. Nc3 {[%clk 0:03:00]}  e6 {[%clk 0:02:53]} 6. Bf4 {[%clk 0:03:00]}  d5 {[%clk 0:02:20]} 7. Nxc6 {[%clk 0:02:59]}  bxc6 {[%clk 0:02:20]} 8. e3 {[%clk 0:02:59]}  Bd6 {[%clk 0:02:15]} 9. Bg5 {[%clk 0:02:38]}  Rb8 {[%clk 0:02:12]} 10. Qc2 {[%clk 0:02:37]}  Qa5 {[%clk 0:02:02]} 11. Bxf6 {[%clk 0:02:34]}  gxf6 {[%clk 0:02:00]} 12. Be2 {[%clk 0:02:26]}  O-O {[%clk 0:01:54]} 13. O-O {[%clk 0:02:26]}  f5 {[%clk 0:01:39]} 14. a3 {[%clk 0:02:18]}  Be5 {[%clk 0:01:39]} 15. b4 {[%clk 0:02:14]}  Qd8 {[%clk 0:01:39]} 16. Rab1 {[%clk 0:01:59]}  Kh8 {[%clk 0:01:28]} 17. g3 {[%clk 0:01:58]}  Rg8 {[%clk 0:01:27]} 18. Na4 {[%clk 0:01:52]}  Qf6 {[%clk 0:01:02]} 19. Nc5 {[%clk 0:01:51]}  Bd6 {[%clk 0:01:00]} 20. cxd5 {[%clk 0:01:25]}  cxd5 {[%clk 0:00:59]} 21. Rfc1 {[%clk 0:01:23]}  f4 {[%clk 0:00:57]} 22. exf4 {[%clk 0:01:20]}  Bxf4 {[%clk 0:00:57]} 23. Rd1 {[%clk 0:01:18]}  Bd6 {[%clk 0:00:52]} 24. Bd3 {[%clk 0:01:18]}  h5 {[%clk 0:00:47]} 25. Qe2 {[%clk 0:01:17]}  Qg5 {[%clk 0:00:39]} 26. Qf3 {[%clk 0:01:15]}  Rg7 {[%clk 0:00:37]} 27. Be2 {[%clk 0:00:53]}  h4 {[%clk 0:00:36]} 28. Rd4 {[%clk 0:00:53]}  Kg8 {[%clk 0:00:32]} 29. Rbd1 {[%clk 0:00:46]}  Bxc5 {[%clk 0:00:29]} 30. bxc5 {[%clk 0:00:46]}  Rb2 {[%clk 0:00:29]} 31. Rb4 {[%clk 0:00:39]}  Qe5 {[%clk 0:00:19]} 32. Bf1 {[%clk 0:00:32]}  hxg3 {[%clk 0:00:18]} 33. hxg3 {[%clk 0:00:33]}  Rc2 {[%clk 0:00:16]} 34. Rh4 {[%clk 0:00:18]}  Rxc5 {[%clk 0:00:12]} 35. Bd3 {[%clk 0:00:18]}  Rc3 {[%clk 0:00:10]} 36. Kg2 {[%clk 0:00:17]}  f5 {[%clk 0:00:10]} 37. Rdh1 {[%clk 0:00:17]}  Bd7 {[%clk 0:00:05]} 38. Rh8+ {[%clk 0:00:17]}  Kf7 {[%clk 0:00:05]} 39. Qh5+ {[%clk 0:00:18]}  Ke7 {[%clk 0:00:05]} 40. Qh4+ {[%clk 0:00:15]}  Kd6 {[%clk 0:00:01]} 41. Qb4+ {[%clk 0:00:15]}  Rc5 {[%clk 0:00:02]} 42. Rc1 {[%clk 0:00:13]}  d4 {[%clk 0:00:02]} 43. Rb8 {[%clk 0:00:10]}  Bc6+ {[%clk 0:00:01]} 44. Kg1 {[%clk 0:00:09]}  Rh7 {[%clk 0:00:02]} 45. f3 {[%clk 0:00:08]}  Qe3+ {[%clk 0:00:01]} 0-1


[Site "https://www.chess.com"]

[Event "Titled Tuesday Blitz June 1 2021"]
[White "Nevednichy, Vladislav"]
[Black "Yoo, Christopher Woojin"]
[WhiteFideId "1205730"]
[BlackFideId "30909694"]
[WhiteElo "2366"]
[BlackElo "2009"]
[Result "1/2-1/2"]
[Round "03"]
[TimeControl "180+1"]
[Date "2021.06.01"]
[WhiteClock "0:00:25"]
[BlackClock "0:00:05"]

1. d4 {[%clk 0:03:00]}  Nf6 {[%clk 0:02:59]} 2. Nf3 {[%clk 0:03:01]}  d5 {[%clk 0:02:58]} 3. Bf4 {[%clk 0:03:00]}  Bf5 {[%clk 0:02:58]} 4. e3 {[%clk 0:03:01]}  e6 {[%clk 0:02:58]} 5. Be2 {[%clk 0:03:01]}  Bd6 {[%clk 0:02:57]} 6. Bxd6 {[%clk 0:03:01]}  Qxd6 {[%clk 0:02:58]} 7. Nbd2 {[%clk 0:03:01]}  c5 {[%clk 0:02:58]} 8. O-O {[%clk 0:02:58]}  Nc6 {[%clk 0:02:49]} 9. c3 {[%clk 0:02:55]}  O-O {[%clk 0:02:49]} 10. h3 {[%clk 0:02:54]}  Rfd8 {[%clk 0:02:42]} 11. Re1 {[%clk 0:02:53]}  e5 {[%clk 0:02:38]} 12. dxe5 {[%clk 0:02:52]}  Nxe5 {[%clk 0:02:39]} 13. Nxe5 {[%clk 0:02:53]}  Qxe5 {[%clk 0:02:40]} 14. Nf3 {[%clk 0:02:51]}  Qc7 {[%clk 0:02:40]} 15. Qb3 {[%clk 0:02:48]}  a6 {[%clk 0:02:39]} 16. Rad1 {[%clk 0:02:47]}  b5 {[%clk 0:02:37]} 17. Qa3 {[%clk 0:02:46]}  Ne4 {[%clk 0:02:24]} 18. Nd2 {[%clk 0:02:41]}  Rab8 {[%clk 0:02:11]} 19. Nxe4 {[%clk 0:02:38]}  Bxe4 {[%clk 0:02:10]} 20. Bd3 {[%clk 0:02:31]}  a5 {[%clk 0:02:06]} 21. Bxe4 {[%clk 0:02:25]}  dxe4 {[%clk 0:02:07]} 22. c4 {[%clk 0:02:17]}  bxc4 {[%clk 0:01:59]} 23. Qc3 {[%clk 0:02:16]}  Rxd1 {[%clk 0:01:31]} 24. Rxd1 {[%clk 0:02:12]}  Qb6 {[%clk 0:01:31]} 25. Qxc4 {[%clk 0:01:55]}  Qxb2 {[%clk 0:01:31]} 26. Rd7 {[%clk 0:01:54]}  Qa1+ {[%clk 0:01:27]} 27. Kh2 {[%clk 0:01:54]}  Qe5+ {[%clk 0:01:27]} 28. g3 {[%clk 0:01:50]}  Qf5 {[%clk 0:01:27]} 29. Rd2 {[%clk 0:01:46]}  h5 {[%clk 0:01:26]} 30. Qe2 {[%clk 0:01:30]}  a4 {[%clk 0:01:18]} 31. Rc2 {[%clk 0:01:26]}  Rb1 {[%clk 0:01:10]} 32. Kg2 {[%clk 0:01:19]}  a3 {[%clk 0:01:10]} 33. g4 {[%clk 0:01:13]}  hxg4 {[%clk 0:01:10]} 34. Qxg4 {[%clk 0:01:13]}  Qxg4+ {[%clk 0:00:28]} 35. hxg4 {[%clk 0:01:14]}  Rb2 {[%clk 0:00:27]} 36. Rxc5 {[%clk 0:01:14]}  Rxa2 {[%clk 0:00:27]} 37. Ra5 {[%clk 0:01:12]}  f6 {[%clk 0:00:27]} 38. Ra4 {[%clk 0:01:06]}  Kf7 {[%clk 0:00:27]} 39. Rxe4 {[%clk 0:01:06]}  Rb2 {[%clk 0:00:27]} 40. Ra4 {[%clk 0:01:06]}  a2 {[%clk 0:00:27]} 41. Kg3 {[%clk 0:01:06]}  Ke6 {[%clk 0:00:27]} 42. f4 {[%clk 0:01:06]}  Kd5 {[%clk 0:00:27]} 43. e4+ {[%clk 0:00:58]}  Kc5 {[%clk 0:00:27]} 44. e5 {[%clk 0:00:53]}  fxe5 {[%clk 0:00:28]} 45. fxe5 {[%clk 0:00:53]}  Kd5 {[%clk 0:00:18]} 46. Ra5+ {[%clk 0:00:51]}  Ke6 {[%clk 0:00:14]} 47. Kf4 {[%clk 0:00:50]}  Rb4+ {[%clk 0:00:12]} 48. Kg5 {[%clk 0:00:50]}  Rb2 {[%clk 0:00:04]} 49. Kg6 {[%clk 0:00:48]}  Rg2 {[%clk 0:00:04]} 50. g5 {[%clk 0:00:48]}  Ke7 {[%clk 0:00:04]} 51. Ra6 {[%clk 0:00:44]}  Kd7 {[%clk 0:00:01]} 52. Kf5 {[%clk 0:00:40]}  Rf2+ {[%clk 0:00:02]} 53. Kg6 {[%clk 0:00:39]}  Rg2 {[%clk 0:00:02]} 54. Kf7 {[%clk 0:00:29]}  Rf2+ {[%clk 0:00:02]} 55. Kxg7 {[%clk 0:00:29]}  Rf5 {[%clk 0:00:03]} 56. g6 {[%clk 0:00:28]}  Rf2 {[%clk 0:00:03]} 57. Kh8 {[%clk 0:00:27]}  Rh2+ {[%clk 0:00:03]} 58. Kg8 {[%clk 0:00:27]}  Ke7 {[%clk 0:00:04]} 59. g7 {[%clk 0:00:27]}  Rg2 {[%clk 0:00:04]} 60. Kh8 {[%clk 0:00:25]}  Rh2+ {[%clk 0:00:04]} 61. Kg8 {[%clk 0:00:26]}  Rg2 {[%clk 0:00:05]} 62. Kh7 {[%clk 0:00:24]}  Rh2+ {[%clk 0:00:05]} 63. Kg8 {[%clk 0:00:25]} 1/2-1/2


[Site "https://www.chess.com"]

[Event "Titled Tuesday Blitz June 1 2021"]
[White "Ozen, Bahadir"]
[Black "Terry, Renato"]
[WhiteFideId "6337058"]
[BlackFideId "3803457"]
[WhiteElo "2503"]
[BlackElo "2581"]
[Result "1-0"]
[Round "03"]
[TimeControl "180+1"]
[Date "2021.06.01"]
[WhiteClock "0:00:19"]
[BlackClock "0:00:01"]

1. e4 {[%clk 0:03:00]}  e6 {[%clk 0:02:59]} 2. d4 {[%clk 0:03:00]}  d5 {[%clk 0:02:59]} 3. exd5 {[%clk 0:03:01]}  exd5 {[%clk 0:02:59]} 4. Nf3 {[%clk 0:03:01]}  Nc6 {[%clk 0:02:59]} 5. Bd3 {[%clk 0:03:00]}  Bd6 {[%clk 0:02:59]} 6. Nc3 {[%clk 0:02:56]}  Nge7 {[%clk 0:02:57]} 7. O-O {[%clk 0:02:56]}  Bg4 {[%clk 0:02:57]} 8. Nb5 {[%clk 0:02:55]}  a6 {[%clk 0:02:49]} 9. Nxd6+ {[%clk 0:02:55]}  Qxd6 {[%clk 0:02:50]} 10. c3 {[%clk 0:02:54]}  O-O {[%clk 0:02:46]} 11. Bxh7+ {[%clk 0:02:42]}  Kxh7 {[%clk 0:02:36]} 12. Ng5+ {[%clk 0:02:42]}  Kg8 {[%clk 0:02:36]} 13. Qxg4 {[%clk 0:02:42]}  Qg6 {[%clk 0:02:30]} 14. Qh3 {[%clk 0:02:39]}  Nf5 {[%clk 0:02:22]} 15. Bf4 {[%clk 0:02:38]}  Rae8 {[%clk 0:02:14]} 16. Rfe1 {[%clk 0:02:31]}  b5 {[%clk 0:01:45]} 17. Qf3 {[%clk 0:02:17]}  Rd8 {[%clk 0:01:23]} 18. Re2 {[%clk 0:02:05]}  Ncxd4 {[%clk 0:01:22]} 19. cxd4 {[%clk 0:02:04]}  Nxd4 {[%clk 0:01:23]} 20. Qe3 {[%clk 0:02:03]}  Nxe2+ {[%clk 0:01:21]} 21. Qxe2 {[%clk 0:02:04]}  c5 {[%clk 0:01:18]} 22. Re1 {[%clk 0:01:48]}  d4 {[%clk 0:01:14]} 23. h4 {[%clk 0:01:48]}  d3 {[%clk 0:01:14]} 24. Qd2 {[%clk 0:01:45]}  c4 {[%clk 0:01:11]} 25. f3 {[%clk 0:01:38]}  Rfe8 {[%clk 0:01:12]} 26. Rxe8+ {[%clk 0:01:37]}  Rxe8 {[%clk 0:01:13]} 27. Ne4 {[%clk 0:01:38]}  f6 {[%clk 0:00:51]} 28. a3 {[%clk 0:01:37]}  Qh5 {[%clk 0:00:47]} 29. Bg3 {[%clk 0:01:36]}  Qd5 {[%clk 0:00:45]} 30. Bf2 {[%clk 0:01:30]}  Qe5 {[%clk 0:00:43]} 31. g3 {[%clk 0:01:26]}  Qd5 {[%clk 0:00:39]} 32. Kg2 {[%clk 0:01:26]}  f5 {[%clk 0:00:30]} 33. Nc3 {[%clk 0:01:26]}  Qd7 {[%clk 0:00:27]} 34. Be3 {[%clk 0:01:23]}  a5 {[%clk 0:00:25]} 35. Nd1 {[%clk 0:01:18]}  f4 {[%clk 0:00:24]} 36. gxf4 {[%clk 0:01:17]}  Re6 {[%clk 0:00:17]} 37. f5 {[%clk 0:01:13]}  Re5 {[%clk 0:00:15]} 38. Qxa5 {[%clk 0:01:10]}  Qxf5 {[%clk 0:00:16]} 39. Qd8+ {[%clk 0:01:09]}  Kh7 {[%clk 0:00:16]} 40. Qd4 {[%clk 0:01:05]}  Re6 {[%clk 0:00:13]} 41. Nf2 {[%clk 0:00:34]}  Rg6+ {[%clk 0:00:10]} 42. Ng4 {[%clk 0:00:34]}  Re6 {[%clk 0:00:09]} 43. Qd7 {[%clk 0:00:20]}  Kg6 {[%clk 0:00:01]} 44. h5+ {[%clk 0:00:19]} 1-0


[Site "https://www.chess.com"]

[Event "Titled Tuesday Blitz June 1 2021"]
[White "Padmini, Rout"]
[Black "Blohberger, Felix"]
[WhiteFideId "5029295"]
[BlackFideId "1632051"]
[WhiteElo "2196"]
[BlackElo "2434"]
[Result "0-1"]
[Round "03"]
[TimeControl "180+1"]
[Date "2021.06.01"]
[WhiteClock "0:00:07"]
[BlackClock "0:00:06"]

1. e4 {[%clk 0:03:00]}  c5 {[%clk 0:02:53]} 2. Nf3 {[%clk 0:03:00]}  Nc6 {[%clk 0:02:52]} 3. Bb5 {[%clk 0:02:56]}  e6 {[%clk 0:02:51]} 4. Bxc6 {[%clk 0:02:48]}  bxc6 {[%clk 0:02:51]} 5. O-O {[%clk 0:02:42]}  Ne7 {[%clk 0:02:51]} 6. d3 {[%clk 0:02:39]}  Ng6 {[%clk 0:02:50]} 7. e5 {[%clk 0:02:33]}  f6 {[%clk 0:02:27]} 8. Re1 {[%clk 0:02:27]}  Be7 {[%clk 0:02:06]} 9. Nc3 {[%clk 0:02:22]}  O-O {[%clk 0:02:03]} 10. exf6 {[%clk 0:02:12]}  gxf6 {[%clk 0:01:53]} 11. Bh6 {[%clk 0:02:11]}  Rf7 {[%clk 0:01:51]} 12. h4 {[%clk 0:01:18]}  e5 {[%clk 0:01:31]} 13. h5 {[%clk 0:01:15]}  Nf8 {[%clk 0:01:29]} 14. Nh4 {[%clk 0:01:04]}  d6 {[%clk 0:01:00]} 15. Qf3 {[%clk 0:00:59]}  f5 {[%clk 0:00:54]} 16. Qg3+ {[%clk 0:00:56]}  Kh8 {[%clk 0:00:54]} 17. Ng6+ {[%clk 0:00:52]}  hxg6 {[%clk 0:00:30]} 18. hxg6 {[%clk 0:00:53]}  Rg7 {[%clk 0:00:30]} 19. Bxg7+ {[%clk 0:00:30]}  Kxg7 {[%clk 0:00:30]} 20. Kf1 {[%clk 0:00:20]}  Nxg6 {[%clk 0:00:27]} 21. Ke2 {[%clk 0:00:20]}  Bh4 {[%clk 0:00:22]} 22. Qh2 {[%clk 0:00:20]}  Nf4+ {[%clk 0:00:18]} 23. Kd2 {[%clk 0:00:19]}  Bg5 {[%clk 0:00:15]} 24. Re3 {[%clk 0:00:18]}  Ng6 {[%clk 0:00:09]} 25. Rh1 {[%clk 0:00:18]}  Bxe3+ {[%clk 0:00:09]} 26. fxe3 {[%clk 0:00:18]}  Qh8 {[%clk 0:00:08]} 27. Qg1 {[%clk 0:00:17]}  Qg8 {[%clk 0:00:08]} 28. Qh2 {[%clk 0:00:17]}  Be6 {[%clk 0:00:07]} 29. Qh6+ {[%clk 0:00:17]}  Kf6 {[%clk 0:00:07]} 30. g4 {[%clk 0:00:16]}  Qh8 {[%clk 0:00:05]} 31. g5+ {[%clk 0:00:15]}  Kf7 {[%clk 0:00:05]} 32. Ne4 {[%clk 0:00:11]}  Qxh6 {[%clk 0:00:04]} 33. Nxd6+ {[%clk 0:00:12]}  Ke7 {[%clk 0:00:04]} 34. Rxh6 {[%clk 0:00:12]}  Kxd6 {[%clk 0:00:04]} 35. Rxg6 {[%clk 0:00:13]}  Rg8 {[%clk 0:00:05]} 36. Rh6 {[%clk 0:00:09]}  Rxg5 {[%clk 0:00:05]} 37. Rh7 {[%clk 0:00:10]}  Rg2+ {[%clk 0:00:05]} 38. Kc3 {[%clk 0:00:10]}  a5 {[%clk 0:00:06]} 39. Ra7 {[%clk 0:00:09]}  f4 {[%clk 0:00:06]} 40. exf4 {[%clk 0:00:09]}  exf4 {[%clk 0:00:07]} 41. Rxa5 {[%clk 0:00:09]}  f3 {[%clk 0:00:08]} 42. Ra8 {[%clk 0:00:09]}  f2 {[%clk 0:00:06]} 43. Rf8 {[%clk 0:00:09]}  Bh3 {[%clk 0:00:06]} 44. a4 {[%clk 0:00:08]}  Rh2 {[%clk 0:00:06]} 45. a5 {[%clk 0:00:07]}  f1=Q {[%clk 0:00:06]} 0-1


[Site "https://www.chess.com"]

[Event "Titled Tuesday Blitz June 1 2021"]
[White "Papasimakopoulos, Alexandros"]
[Black "Lehtosaari, Mauri"]
[WhiteFideId "4244125"]
[BlackFideId "501999"]
[WhiteElo "2352"]
[BlackElo "2445"]
[Result "0-1"]
[Round "03"]
[TimeControl "180+1"]
[Date "2021.06.01"]
[WhiteClock "0:01:07"]
[BlackClock "0:00:34"]

1. d4 {[%clk 0:03:00]}  d5 {[%clk 0:02:58]} 2. c4 {[%clk 0:03:01]}  c6 {[%clk 0:02:58]} 3. cxd5 {[%clk 0:03:01]}  cxd5 {[%clk 0:02:58]} 4. Bf4 {[%clk 0:03:01]}  Nf6 {[%clk 0:02:58]} 5. Nc3 {[%clk 0:03:01]}  Nc6 {[%clk 0:02:59]} 6. e3 {[%clk 0:03:01]}  a6 {[%clk 0:02:59]} 7. Bd3 {[%clk 0:03:02]}  Bg4 {[%clk 0:02:59]} 8. Nge2 {[%clk 0:03:00]}  Bxe2 {[%clk 0:02:57]} 9. Qxe2 {[%clk 0:03:00]}  e6 {[%clk 0:02:58]} 10. O-O {[%clk 0:03:00]}  Bd6 {[%clk 0:02:57]} 11. Bg5 {[%clk 0:03:01]}  h6 {[%clk 0:02:57]} 12. Bh4 {[%clk 0:03:00]}  O-O {[%clk 0:02:57]} 13. Rac1 {[%clk 0:03:01]}  Rc8 {[%clk 0:02:57]} 14. Na4 {[%clk 0:03:01]}  b5 {[%clk 0:02:57]} 15. Nc5 {[%clk 0:03:01]}  Bxc5 {[%clk 0:02:55]} 16. Rxc5 {[%clk 0:03:02]}  Na5 {[%clk 0:02:49]} 17. Rfc1 {[%clk 0:02:45]}  Rxc5 {[%clk 0:02:45]} 18. dxc5 {[%clk 0:02:45]}  Nc6 {[%clk 0:02:44]} 19. a4 {[%clk 0:02:46]}  bxa4 {[%clk 0:02:43]} 20. Bxa6 {[%clk 0:02:46]}  Qa5 {[%clk 0:02:36]} 21. Bxf6 {[%clk 0:02:40]}  gxf6 {[%clk 0:02:37]} 22. Bb5 {[%clk 0:02:40]}  Ne5 {[%clk 0:02:32]} 23. f4 {[%clk 0:02:30]}  Ng6 {[%clk 0:02:23]} 24. f5 {[%clk 0:02:30]}  exf5 {[%clk 0:02:24]} 25. c6 {[%clk 0:02:18]}  Rc8 {[%clk 0:02:19]} 26. Qd3 {[%clk 0:02:18]}  Kg7 {[%clk 0:02:12]} 27. Qxd5 {[%clk 0:02:16]}  Ne5 {[%clk 0:02:04]} 28. h3 {[%clk 0:02:07]}  Qb4 {[%clk 0:01:57]} 29. Qc5 {[%clk 0:01:53]}  Qxb2 {[%clk 0:01:52]} 30. c7 {[%clk 0:01:47]}  a3 {[%clk 0:01:19]} 31. Ba6 {[%clk 0:01:46]}  a2 {[%clk 0:01:07]} 32. Kh2 {[%clk 0:01:28]}  Nf3+ {[%clk 0:00:56]} 33. Kg3 {[%clk 0:01:25]}  Ng5 {[%clk 0:00:56]} 34. Qc6 {[%clk 0:01:12]}  Ne4+ {[%clk 0:00:52]} 35. Kh2 {[%clk 0:01:11]}  a1=Q {[%clk 0:00:37]} 36. Rxa1 {[%clk 0:01:11]}  Qe5+ {[%clk 0:00:37]} 37. Kh1 {[%clk 0:01:07]}  Qxa1+ {[%clk 0:00:34]} 38. Kh2 {[%clk 0:01:07]}  Qe5+ {[%clk 0:00:34]} 39. Kh1 {[%clk 0:01:07]}  Rxc7 {[%clk 0:00:34]} 0-1


[Site "https://www.chess.com"]

[Event "Titled Tuesday Blitz June 1 2021"]
[White "Paravyan, David"]
[Black "Moroni, Luca Jr"]
[WhiteFideId "4194985"]
[BlackFideId "865834"]
[WhiteElo "2562"]
[BlackElo "2491"]
[Result "1-0"]
[Round "03"]
[TimeControl "180+1"]
[Date "2021.06.01"]
[WhiteClock "0:01:32"]
[BlackClock "0:00:02"]

1. c4 {[%clk 0:02:52]}  g6 {[%clk 0:02:58]} 2. d4 {[%clk 0:02:51]}  Bg7 {[%clk 0:02:59]} 3. Nc3 {[%clk 0:02:50]}  d6 {[%clk 0:02:59]} 4. e4 {[%clk 0:02:49]}  c5 {[%clk 0:02:58]} 5. d5 {[%clk 0:02:49]}  Bxc3+ {[%clk 0:02:58]} 6. bxc3 {[%clk 0:02:50]}  e5 {[%clk 0:02:58]} 7. a4 {[%clk 0:02:48]}  Qe7 {[%clk 0:02:51]} 8. a5 {[%clk 0:02:48]}  f5 {[%clk 0:02:50]} 9. exf5 {[%clk 0:02:41]}  gxf5 {[%clk 0:02:48]} 10. Qh5+ {[%clk 0:02:39]}  Qf7 {[%clk 0:02:47]} 11. Be2 {[%clk 0:02:33]}  Nf6 {[%clk 0:02:18]} 12. Qh4 {[%clk 0:02:33]}  f4 {[%clk 0:02:12]} 13. g3 {[%clk 0:02:26]}  Bf5 {[%clk 0:02:10]} 14. Nf3 {[%clk 0:02:21]}  Nbd7 {[%clk 0:01:47]} 15. gxf4 {[%clk 0:02:20]}  O-O-O {[%clk 0:01:23]} 16. fxe5 {[%clk 0:02:20]}  dxe5 {[%clk 0:01:24]} 17. Be3 {[%clk 0:02:15]}  e4 {[%clk 0:01:13]} 18. Ng5 {[%clk 0:02:14]}  Qe7 {[%clk 0:01:13]} 19. Qf4 {[%clk 0:02:11]}  h6 {[%clk 0:00:43]} 20. Qxf5 {[%clk 0:01:48]}  hxg5 {[%clk 0:00:43]} 21. a6 {[%clk 0:01:46]}  b6 {[%clk 0:00:23]} 22. Bxg5 {[%clk 0:01:41]}  Rdf8 {[%clk 0:00:22]} 23. Qe6 {[%clk 0:01:40]}  Qxe6 {[%clk 0:00:18]} 24. dxe6 {[%clk 0:01:41]}  Ne5 {[%clk 0:00:19]} 25. O-O-O {[%clk 0:01:39]}  Nfg4 {[%clk 0:00:05]} 26. e7 {[%clk 0:01:38]}  Re8 {[%clk 0:00:05]} 27. Rd8+ {[%clk 0:01:38]}  Kc7 {[%clk 0:00:05]} 28. Rhd1 {[%clk 0:01:38]}  Nxf2 {[%clk 0:00:04]} 29. Bf4 {[%clk 0:01:33]}  Nxd1 {[%clk 0:00:02]} 30. Bxe5+ {[%clk 0:01:33]}  Kc6 {[%clk 0:00:02]} 31. Bxh8 {[%clk 0:01:32]}  Rxe7 {[%clk 0:00:02]} 32. Kxd1 {[%clk 0:01:32]} 1-0


[Site "https://www.chess.com"]